[Event "*** SCC Grand Prix: Titled Tuesday Blitz"]
[Site "Chess.com"]
[Date "2020.06.23"]
[Round "1"]
[White "londonkid"]
[Black "Zurability"]
[Result "0-1"]
[WhiteElo "2341"]
[BlackElo "2670"]
[TimeControl "180+1"]
[EndTime "10:07:05 PDT"]
[Termination "Zurability won by checkmate"]

1. d4 {[%clk 0:03:00.9]} 1... Nf6 {[%clk 0:02:55.1]} 2. c4 {[%clk 0:02:58.7]}
2... e6 {[%clk 0:02:53.3]} 3. Nf3 {[%clk 0:02:58.3]} 3... b6 {[%clk 0:02:51.6]}
4. g3 {[%clk 0:02:58.4]} 4... Bb7 {[%clk 0:02:51.3]} 5. Bg2 {[%clk 0:02:58.5]}
5... Be7 {[%clk 0:02:51.9]} 6. O-O {[%clk 0:02:58.7]} 6... O-O {[%clk
0:02:51.7]} 7. Nc3 {[%clk 0:02:59.2]} 7... d5 {[%clk 0:02:48.7]} 8. Ne5 {[%clk
0:02:57.7]} 8... Re8 {[%clk 0:02:43.6]} 9. b3 {[%clk 0:02:52.6]} 9... Nbd7
{[%clk 0:02:41.6]} 10. Bb2 {[%clk 0:02:51.7]} 10... c5 {[%clk 0:02:33.7]} 11. e3
{[%clk 0:02:43.6]} 11... Rc8 {[%clk 0:02:21.5]} 12. Rc1 {[%clk 0:02:38.4]} 12...
Ba8 {[%clk 0:02:16.2]} 13. Nb5 {[%clk 0:02:33.3]} 13... a6 {[%clk 0:02:11.9]}
14. Nc3 {[%clk 0:02:27.9]} 14... cxd4 {[%clk 0:02:09.3]} 15. exd4 {[%clk
0:02:27.8]} 15... dxc4 {[%clk 0:02:08.2]} 16. Bxa8 {[%clk 0:02:27.1]} 16... Rxa8
{[%clk 0:02:07.8]} 17. Nxc4 {[%clk 0:02:07.9]} 17... b5 {[%clk 0:01:59.6]} 18.
Ne3 {[%clk 0:02:04.5]} 18... Nb6 {[%clk 0:01:57.3]} 19. Qf3 {[%clk 0:01:45]}
19... Qd7 {[%clk 0:01:54]} 20. Rfd1 {[%clk 0:01:43.3]} 20... Red8 {[%clk
0:01:51]} 21. Ne4 {[%clk 0:01:39.7]} 21... Nxe4 {[%clk 0:01:34.2]} 22. Qxe4
{[%clk 0:01:39.6]} 22... Nd5 {[%clk 0:01:34.9]} 23. Nxd5 {[%clk 0:01:27.5]}
23... Qxd5 {[%clk 0:01:35.8]} 24. Qxd5 {[%clk 0:01:26.2]} 24... Rxd5 {[%clk
0:01:35.1]} 25. Rc7 {[%clk 0:01:26.3]} 25... Bf6 {[%clk 0:01:31.8]} 26. Rdc1
{[%clk 0:01:22.6]} 26... g6 {[%clk 0:01:17.5]} 27. Rb7 {[%clk 0:01:12.8]} 27...
Bd8 {[%clk 0:01:00.6]} 28. Rc5 {[%clk 0:00:59.2]} 28... Rd6 {[%clk 0:00:53.6]}
29. a4 {[%clk 0:00:40.8]} 29... bxa4 {[%clk 0:00:50.4]} 30. bxa4 {[%clk
0:00:40.9]} 30... Kf8 {[%clk 0:00:46.5]} 31. Ba3 {[%clk 0:00:39.5]} 31... Ke8
{[%clk 0:00:45.9]} 32. Rc4 {[%clk 0:00:25.7]} 32... Rb6 {[%clk 0:00:41.9]} 33.
Rxb6 {[%clk 0:00:22.9]} 33... Bxb6 {[%clk 0:00:42.8]} 34. Bc5 {[%clk 0:00:22.8]}
34... Ba5 {[%clk 0:00:38]} 35. Bb4 {[%clk 0:00:19.8]} 35... Bd8 {[%clk
0:00:37.2]} 36. Bc5 {[%clk 0:00:13.9]} 36... Rb8 {[%clk 0:00:29.5]} 37. Kg2
{[%clk 0:00:13.9]} 37... Kd7 {[%clk 0:00:29.5]} 38. Kf3 {[%clk 0:00:12.9]} 38...
Rb3+ {[%clk 0:00:25.4]} 39. Ke4 {[%clk 0:00:13.2]} 39... Bc7 {[%clk 0:00:22.5]}
40. Rb4 {[%clk 0:00:09.5]} 40... f5# {[%clk 0:00:21.6]} 0-1

[Event "*** SCC Grand Prix: Titled Tuesday Blitz"]
[Site "Chess.com"]
[Date "2020.06.23"]
[Round "1"]
[White "attack2mateU"]
[Black "Pintacara"]
[Result "1-0"]
[WhiteElo "2660"]
[BlackElo "2338"]
[TimeControl "180+1"]
[EndTime "10:07:05 PDT"]
[Termination "attack2mateU won on time"]

1. e4 {[%clk 0:02:59.9]} 1... c5 {[%clk 0:02:56.8]} 2. Nf3 {[%clk 0:02:59.4]}
2... e6 {[%clk 0:02:56.6]} 3. d4 {[%clk 0:02:56.6]} 3... cxd4 {[%clk 0:02:57.5]}
4. Nxd4 {[%clk 0:02:56]} 4... a6 {[%clk 0:02:54.9]} 5. Nc3 {[%clk 0:02:55.5]}
5... Qc7 {[%clk 0:02:55.1]} 6. Bd3 {[%clk 0:02:55.8]} 6... Nf6 {[%clk
0:02:52.8]} 7. f4 {[%clk 0:02:52.7]} 7... d6 {[%clk 0:02:52.8]} 8. Qe2 {[%clk
0:02:19.1]} 8... Nbd7 {[%clk 0:02:51.6]} 9. g4 {[%clk 0:02:16.1]} 9... g6 {[%clk
0:02:50.1]} 10. Bd2 {[%clk 0:01:39.8]} 10... b5 {[%clk 0:02:45.6]} 11. a3 {[%clk
0:01:39.6]} 11... Bb7 {[%clk 0:02:44.6]} 12. O-O-O {[%clk 0:01:38.8]} 12... Rc8
{[%clk 0:02:42.5]} 13. Kb1 {[%clk 0:01:37.4]} 13... Bg7 {[%clk 0:02:39.6]} 14.
Rhe1 {[%clk 0:01:26.4]} 14... Nxg4 {[%clk 0:02:23.4]} 15. Nxe6 {[%clk
0:01:24.9]} 15... fxe6 {[%clk 0:02:19.6]} 16. Qxg4 {[%clk 0:01:25.4]} 16... Nc5
{[%clk 0:02:09.9]} 17. f5 {[%clk 0:01:20.2]} 17... O-O {[%clk 0:01:52.5]} 18.
fxg6 {[%clk 0:01:18.3]} 18... h6 {[%clk 0:01:49.5]} 19. Qh3 {[%clk 0:01:13.3]}
19... Rf2 {[%clk 0:01:20.7]} 20. Rf1 {[%clk 0:01:01.2]} 20... Rcf8 {[%clk
0:01:17.5]} 21. Rxf2 {[%clk 0:01:00.3]} 21... Rxf2 {[%clk 0:01:18.4]} 22. Bxh6
{[%clk 0:00:45.2]} 22... Bxc3 {[%clk 0:01:07.3]} 23. Be3 {[%clk 0:00:44.3]}
23... Nxd3 {[%clk 0:00:31.7]} 24. Rxd3 {[%clk 0:00:35]} 24... Bxe4 {[%clk
0:00:21]} 25. Qxe6+ {[%clk 0:00:32.6]} 25... Kg7 {[%clk 0:00:20.6]} 26. Bh6+
{[%clk 0:00:14.2]} 26... Kxh6 {[%clk 0:00:15.4]} 27. Rh3+ {[%clk 0:00:14.6]}
27... Kg5 {[%clk 0:00:13.2]} 28. Rg3+ {[%clk 0:00:15.1]} 28... Kf4 {[%clk
0:00:10.6]} 29. Rg4+ {[%clk 0:00:14]} 29... Ke3 {[%clk 0:00:07.7]} 30. Qxe4+
{[%clk 0:00:14.9]} 30... Kd2 {[%clk 0:00:07.4]} 31. Qd3+ {[%clk 0:00:14.8]}
31... Ke1 {[%clk 0:00:07.4]} 32. Rg1+ {[%clk 0:00:15.4]} 1-0

[Event "*** SCC Grand Prix: Titled Tuesday Blitz"]
[Site "Chess.com"]
[Date "2020.06.23"]
[Round "1"]
[White "ErikRonka"]
[Black "chito89"]
[Result "1/2-1/2"]
[WhiteElo "2400"]
[BlackElo "2753"]
[TimeControl "180+1"]
[EndTime "10:07:08 PDT"]
[Termination "Game drawn by repetition"]

1. e4 {[%clk 0:03:00.5]} 1... g6 {[%clk 0:02:56.7]} 2. d4 {[%clk 0:02:59.7]}
2... Bg7 {[%clk 0:02:56.8]} 3. c4 {[%clk 0:02:58.8]} 3... d6 {[%clk 0:02:55]} 4.
Nc3 {[%clk 0:02:58.4]} 4... e5 {[%clk 0:02:55.5]} 5. Nge2 {[%clk 0:02:58]} 5...
exd4 {[%clk 0:02:55.5]} 6. Nxd4 {[%clk 0:02:57.9]} 6... Nc6 {[%clk 0:02:56.4]}
7. Be3 {[%clk 0:02:57.9]} 7... Nge7 {[%clk 0:02:56.8]} 8. Be2 {[%clk 0:02:54.8]}
8... O-O {[%clk 0:02:56.1]} 9. O-O {[%clk 0:02:20]} 9... f5 {[%clk 0:02:54.6]}
10. Nxc6 {[%clk 0:02:14.4]} 10... bxc6 {[%clk 0:02:49.3]} 11. Bd4 {[%clk
0:01:47.9]} 11... Bxd4 {[%clk 0:02:46.1]} 12. Qxd4 {[%clk 0:01:48.8]} 12... c5
{[%clk 0:02:47]} 13. Qd2 {[%clk 0:01:41.8]} 13... f4 {[%clk 0:02:43.1]} 14. Rfe1
{[%clk 0:01:22.3]} 14... Be6 {[%clk 0:02:39.9]} 15. Nd5 {[%clk 0:01:14.8]} 15...
Nc6 {[%clk 0:02:37.8]} 16. Nxf4 {[%clk 0:01:11.2]} 16... Qg5 {[%clk 0:02:35.3]}
17. g3 {[%clk 0:01:09.1]} 17... Ne5 {[%clk 0:02:35.8]} 18. Rad1 {[%clk
0:00:58.2]} 18... Bg4 {[%clk 0:02:29]} 19. Nd5 {[%clk 0:00:40.7]} 19... Qh5
{[%clk 0:01:58.1]} 20. f4 {[%clk 0:00:36.4]} 20... Bxe2 {[%clk 0:01:58.3]} 21.
fxe5 {[%clk 0:00:27.7]} 21... Bxd1 {[%clk 0:01:57.4]} 22. Nf6+ {[%clk 0:00:25]}
22... Rxf6 {[%clk 0:01:55.5]} 23. Qd5+ {[%clk 0:00:20.8]} 23... Rf7 {[%clk
0:01:51.9]} 24. Qxa8+ {[%clk 0:00:20.2]} 24... Kg7 {[%clk 0:01:52.5]} 25. e6
{[%clk 0:00:16.2]} 25... Re7 {[%clk 0:01:21.8]} 26. Qd8 {[%clk 0:00:15.6]} 26...
Rxe6 {[%clk 0:01:13.6]} 27. Qd7+ {[%clk 0:00:15.1]} 27... Kf6 {[%clk 0:01:14.3]}
28. Rf1+ {[%clk 0:00:15.2]} 28... Bf3 {[%clk 0:01:15.1]} 29. e5+ {[%clk
0:00:10]} 29... Kxe5 {[%clk 0:01:13]} 30. Qg7+ {[%clk 0:00:07.9]} 30... Rf6
{[%clk 0:01:00.5]} 31. Qe7+ {[%clk 0:00:08]} 31... Re6 {[%clk 0:00:59.3]} 32.
Qg7+ {[%clk 0:00:07.8]} 32... Ke4 {[%clk 0:01:00]} 33. Qc3 {[%clk 0:00:07.5]}
33... Re5 {[%clk 0:00:36.3]} 34. Qc2+ {[%clk 0:00:07.6]} 34... Kd4 {[%clk
0:00:25.6]} 35. Qc3+ {[%clk 0:00:07.9]} 35... Ke4 {[%clk 0:00:25.8]} 36. Qc2+
{[%clk 0:00:08.2]} 36... Kd4 {[%clk 0:00:18.5]} 37. Qc3+ {[%clk 0:00:08.5]}
37... Ke4 {[%clk 0:00:18.4]} 1/2-1/2

[Event "*** SCC Grand Prix: Titled Tuesday Blitz"]
[Site "Chess.com"]
[Date "2020.06.23"]
[Round "1"]
[White "LionTheLeon_06"]
[Black "Ekka83"]
[Result "1-0"]
[WhiteElo "2701"]
[BlackElo "2353"]
[TimeControl "180+1"]
[EndTime "10:07:11 PDT"]
[Termination "LionTheLeon_06 won by resignation"]

1. d4 {[%clk 0:02:59.3]} 1... Nf6 {[%clk 0:02:57]} 2. c4 {[%clk 0:02:58.9]} 2...
e6 {[%clk 0:02:38.9]} 3. Nc3 {[%clk 0:02:57.7]} 3... Bb4 {[%clk 0:02:38.1]} 4.
Qc2 {[%clk 0:02:56.8]} 4... c5 {[%clk 0:02:36.1]} 5. Nf3 {[%clk 0:02:49.1]} 5...
O-O {[%clk 0:02:32.6]} 6. a3 {[%clk 0:02:45.3]} 6... cxd4 {[%clk 0:02:31.5]} 7.
axb4 {[%clk 0:02:43.5]} 7... dxc3 {[%clk 0:02:31.1]} 8. Qxc3 {[%clk 0:02:38.8]}
8... d5 {[%clk 0:02:32]} 9. c5 {[%clk 0:02:32.3]} 9... Ne4 {[%clk 0:02:27.5]}
10. Qc2 {[%clk 0:02:25.3]} 10... Nc6 {[%clk 0:02:26.5]} 11. Bd2 {[%clk 0:02:21]}
11... a5 {[%clk 0:02:12.5]} 12. b5 {[%clk 0:02:12.8]} 12... Nxd2 {[%clk
0:02:11.4]} 13. Qxd2 {[%clk 0:02:08.7]} 13... Nb4 {[%clk 0:02:04.3]} 14. e3
{[%clk 0:01:58.6]} 14... Bd7 {[%clk 0:02:03.5]} 15. Be2 {[%clk 0:01:37.5]} 15...
Qc7 {[%clk 0:02:02.8]} 16. Rc1 {[%clk 0:01:33.7]} 16... Na2 {[%clk 0:01:59.4]}
17. Ra1 {[%clk 0:01:33.4]} 17... Nb4 {[%clk 0:01:58.9]} 18. Rc1 {[%clk
0:01:05.2]} 18... Na2 {[%clk 0:01:57.2]} 19. b6 {[%clk 0:01:03.7]} 19... Qb8
{[%clk 0:01:47.3]} 20. Ra1 {[%clk 0:01:02.8]} 20... Nb4 {[%clk 0:01:46.3]} 21.
O-O {[%clk 0:01:02.8]} 21... Nc6 {[%clk 0:01:44.1]} 22. Bb5 {[%clk 0:01:00.1]}
22... Ne5 {[%clk 0:01:38.7]} 23. Bxd7 {[%clk 0:00:57.6]} 23... Nxd7 {[%clk
0:01:37.9]} 24. Rxa5 {[%clk 0:00:57.6]} 24... Rxa5 {[%clk 0:01:34.4]} 25. Qxa5
{[%clk 0:00:58.5]} 25... Rc8 {[%clk 0:01:34.6]} 26. b4 {[%clk 0:00:58.4]} 26...
h5 {[%clk 0:01:13.4]} 27. Qa7 {[%clk 0:00:55.9]} 27... f6 {[%clk 0:01:05.1]} 28.
Ra1 {[%clk 0:00:55.4]} 28... Ne5 {[%clk 0:00:59.2]} 29. Qxb8 {[%clk 0:00:48.7]}
29... Nxf3+ {[%clk 0:00:54.9]} 30. gxf3 {[%clk 0:00:49.6]} 30... Rxb8 {[%clk
0:00:55.3]} 31. b5 {[%clk 0:00:49]} 31... Kf7 {[%clk 0:00:51.9]} 32. Rb1 {[%clk
0:00:45.6]} 32... Ke7 {[%clk 0:00:49.6]} 33. c6 {[%clk 0:00:45.7]} 33... Kd6
{[%clk 0:00:49.1]} 34. c7 {[%clk 0:00:45.2]} 34... Rc8 {[%clk 0:00:48.4]} 35.
Rc1 {[%clk 0:00:45.5]} 35... e5 {[%clk 0:00:46.5]} 36. Kf1 {[%clk 0:00:45.8]}
36... g5 {[%clk 0:00:45.6]} 37. Ke2 {[%clk 0:00:46.1]} 37... h4 {[%clk
0:00:27.7]} 38. h3 {[%clk 0:00:44]} 38... Ke6 {[%clk 0:00:26.4]} 39. Kd2 {[%clk
0:00:43.1]} 39... Kd6 {[%clk 0:00:25.8]} 40. Kd3 {[%clk 0:00:43.2]} 40... Ke6
{[%clk 0:00:25.1]} 41. Ra1 {[%clk 0:00:41.7]} 41... Kd6 {[%clk 0:00:24.5]} 42.
Ra7 {[%clk 0:00:40.4]} 42... e4+ {[%clk 0:00:16.5]} 43. fxe4 {[%clk 0:00:38.9]}
43... dxe4+ {[%clk 0:00:17.4]} 44. Kxe4 {[%clk 0:00:38.9]} 1-0

[Event "*** SCC Grand Prix: Titled Tuesday Blitz"]
[Site "Chess.com"]
[Date "2020.06.23"]
[Round "1"]
[White "wonderfultime"]
[Black "BigAl"]
[Result "1-0"]
[WhiteElo "2966"]
[BlackElo "2458"]
[TimeControl "180+1"]
[EndTime "10:07:12 PDT"]
[Termination "wonderfultime won by resignation"]

1. d4 {[%clk 0:02:57.8]} 1... Nf6 {[%clk 0:02:59.4]} 2. Nf3 {[%clk 0:02:57.4]}
2... g6 {[%clk 0:02:59.9]} 3. Bg5 {[%clk 0:02:57.5]} 3... Bg7 {[%clk 0:03:00.2]}
4. Nbd2 {[%clk 0:02:58.2]} 4... O-O {[%clk 0:03:00.8]} 5. c3 {[%clk 0:02:58.9]}
5... d6 {[%clk 0:03:01.3]} 6. e4 {[%clk 0:02:59.3]} 6... c5 {[%clk 0:03:01.9]}
7. dxc5 {[%clk 0:03:00.2]} 7... dxc5 {[%clk 0:03:01.8]} 8. Bc4 {[%clk
0:03:00.9]} 8... Nc6 {[%clk 0:03:02]} 9. O-O {[%clk 0:03:01]} 9... h6 {[%clk
0:03:02.6]} 10. Bh4 {[%clk 0:02:59]} 10... Nh5 {[%clk 0:03:01]} 11. Re1 {[%clk
0:02:55.8]} 11... Qc7 {[%clk 0:03:00.6]} 12. Qc2 {[%clk 0:02:49.8]} 12... Kh7
{[%clk 0:02:52.2]} 13. Rad1 {[%clk 0:02:39.2]} 13... b6 {[%clk 0:02:52.2]} 14.
Nf1 {[%clk 0:02:37]} 14... Ne5 {[%clk 0:02:39.2]} 15. Be2 {[%clk 0:02:31.5]}
15... Nf4 {[%clk 0:02:29.1]} 16. Bg3 {[%clk 0:02:03.1]} 16... Nxe2+ {[%clk
0:02:28.6]} 17. Qxe2 {[%clk 0:02:04]} 17... Bg4 {[%clk 0:02:14.2]} 18. Ne3
{[%clk 0:02:03.8]} 18... Bxf3 {[%clk 0:02:13.6]} 19. gxf3 {[%clk 0:02:04.1]}
19... Qb7 {[%clk 0:01:59.5]} 20. f4 {[%clk 0:02:02]} 20... Nc6 {[%clk
0:01:59.8]} 21. h4 {[%clk 0:01:57.6]} 21... e6 {[%clk 0:01:48.6]} 22. h5 {[%clk
0:01:55.7]} 22... Ne7 {[%clk 0:01:48.7]} 23. hxg6+ {[%clk 0:01:46.6]} 23... fxg6
{[%clk 0:01:42.4]} 24. Nc4 {[%clk 0:01:30.5]} 24... Rad8 {[%clk 0:01:35.7]} 25.
Rxd8 {[%clk 0:01:15.5]} 25... Rxd8 {[%clk 0:01:35]} 26. Qg4 {[%clk 0:01:16.4]}
26... Qc6 {[%clk 0:01:27]} 27. Bh4 {[%clk 0:01:16.9]} 27... Re8 {[%clk
0:01:26.7]} 28. Nd2 {[%clk 0:01:13.9]} 28... Ng8 {[%clk 0:01:20.6]} 29. e5
{[%clk 0:01:02.9]} 29... Rf8 {[%clk 0:01:12.2]} 30. Ne4 {[%clk 0:00:59.9]} 30...
Rf5 {[%clk 0:01:07.8]} 31. Bg3 {[%clk 0:00:37]} 31... Ne7 {[%clk 0:00:59]} 32.
Qh4 {[%clk 0:00:36]} 32... Qd7 {[%clk 0:00:47.6]} 33. Qg4 {[%clk 0:00:28.3]}
33... Qd5 {[%clk 0:00:44]} 34. b3 {[%clk 0:00:25.5]} 34... Rf7 {[%clk 0:00:38]}
35. c4 {[%clk 0:00:23.9]} 35... Qd3 {[%clk 0:00:37.7]} 36. Qxe6 {[%clk
0:00:22.3]} 36... Nf5 {[%clk 0:00:22.6]} 37. Qxf7 {[%clk 0:00:20.9]} 37... h5
{[%clk 0:00:22.3]} 38. Ng5+ {[%clk 0:00:15]} 38... Kh6 {[%clk 0:00:22.5]} 39.
Qg8 {[%clk 0:00:12.9]} 1-0

[Event "*** SCC Grand Prix: Titled Tuesday Blitz"]
[Site "Chess.com"]
[Date "2020.06.23"]
[Round "1"]
[White "Enki007"]
[Black "chessmaugli"]
[Result "1-0"]
[WhiteElo "2651"]
[BlackElo "2319"]
[TimeControl "180+1"]
[EndTime "10:07:12 PDT"]
[Termination "Enki007 won by resignation"]

1. d4 {[%clk 0:02:59.5]} 1... Nf6 {[%clk 0:02:59]} 2. Nf3 {[%clk 0:02:57.7]}
2... e6 {[%clk 0:02:58.4]} 3. Bf4 {[%clk 0:02:55.8]} 3... d5 {[%clk 0:02:57]} 4.
e3 {[%clk 0:02:51]} 4... Bd6 {[%clk 0:02:55.7]} 5. Bxd6 {[%clk 0:02:49.1]} 5...
cxd6 {[%clk 0:02:54.8]} 6. c4 {[%clk 0:02:47.4]} 6... dxc4 {[%clk 0:02:51.2]} 7.
Bxc4 {[%clk 0:02:48.3]} 7... Nc6 {[%clk 0:02:50.4]} 8. O-O {[%clk 0:02:47.1]}
8... O-O {[%clk 0:02:49.1]} 9. Nc3 {[%clk 0:02:35.4]} 9... b6 {[%clk 0:02:39.8]}
10. Rc1 {[%clk 0:02:25.2]} 10... Bb7 {[%clk 0:02:37.8]} 11. a3 {[%clk
0:02:24.6]} 11... Rc8 {[%clk 0:02:33.8]} 12. Ba2 {[%clk 0:02:19.1]} 12... Ne7
{[%clk 0:02:29.9]} 13. Qe2 {[%clk 0:02:16.2]} 13... Ne4 {[%clk 0:02:22.9]} 14.
Nxe4 {[%clk 0:02:13.6]} 14... Bxe4 {[%clk 0:02:22.5]} 15. Nd2 {[%clk 0:02:14]}
15... Bd5 {[%clk 0:02:17.9]} 16. Bb1 {[%clk 0:02:12]} 16... Qd7 {[%clk
0:02:04.6]} 17. Ne4 {[%clk 0:02:09.2]} 17... Bxe4 {[%clk 0:02:02.6]} 18. Bxe4
{[%clk 0:02:08.3]} 18... d5 {[%clk 0:02:02]} 19. Bd3 {[%clk 0:02:06.6]} 19...
Rxc1 {[%clk 0:02:00.4]} 20. Rxc1 {[%clk 0:02:06.2]} 20... Rc8 {[%clk 0:01:59.7]}
21. Rd1 {[%clk 0:01:59.1]} 21... g6 {[%clk 0:01:54.3]} 22. h4 {[%clk 0:01:55.6]}
22... Kg7 {[%clk 0:01:44.4]} 23. h5 {[%clk 0:01:48.4]} 23... Nf5 {[%clk
0:01:36.3]} 24. g3 {[%clk 0:01:46]} 24... Nd6 {[%clk 0:01:33.4]} 25. Kg2 {[%clk
0:01:43.3]} 25... Qe7 {[%clk 0:01:30.7]} 26. Rh1 {[%clk 0:01:38.6]} 26... Qg5
{[%clk 0:01:24.2]} 27. Qf3 {[%clk 0:01:22]} 27... Nf5 {[%clk 0:01:11.7]} 28. Qe2
{[%clk 0:01:18.6]} 28... Rc7 {[%clk 0:01:04.7]} 29. Qe1 {[%clk 0:01:09.7]} 29...
Nd6 {[%clk 0:00:59.7]} 30. hxg6 {[%clk 0:01:06]} 30... hxg6 {[%clk 0:00:57.9]}
31. Rh3 {[%clk 0:00:58.1]} 31... Ne4 {[%clk 0:00:51.6]} 32. f3 {[%clk
0:00:54.6]} 32... Nd6 {[%clk 0:00:48.2]} 33. Kf2 {[%clk 0:00:51.3]} 33... Nf5
{[%clk 0:00:45]} 34. g4 {[%clk 0:00:49.1]} 34... Nd6 {[%clk 0:00:41.1]} 35. Qh1
{[%clk 0:00:47.4]} 35... Kf8 {[%clk 0:00:34.2]} 36. Rh8+ {[%clk 0:00:44.6]}
36... Ke7 {[%clk 0:00:33.5]} 37. Ra8 {[%clk 0:00:42.5]} 37... Qf6 {[%clk
0:00:29.6]} 38. Qh6 {[%clk 0:00:36.9]} 38... Ne8 {[%clk 0:00:14.7]} 39. g5
{[%clk 0:00:24.4]} 39... Qg7 {[%clk 0:00:11.9]} 40. Rxe8+ {[%clk 0:00:23.6]} 1-0

[Event "*** SCC Grand Prix: Titled Tuesday Blitz"]
[Site "Chess.com"]
[Date "2020.06.23"]
[Round "1"]
[White "doctorcristian"]
[Black "obliviate12"]
[Result "0-1"]
[WhiteElo "2428"]
[BlackElo "2841"]
[TimeControl "180+1"]
[EndTime "10:07:13 PDT"]
[Termination "obliviate12 won by resignation"]

1. d4 {[%clk 0:02:57.9]} 1... d5 {[%clk 0:02:59.6]} 2. Bf4 {[%clk 0:02:56.8]}
2... e6 {[%clk 0:02:58.9]} 3. e3 {[%clk 0:02:56]} 3... Nf6 {[%clk 0:02:58.1]} 4.
Nd2 {[%clk 0:02:53.2]} 4... b6 {[%clk 0:02:56.5]} 5. Ngf3 {[%clk 0:02:52.2]}
5... Bd6 {[%clk 0:02:54.6]} 6. Bg3 {[%clk 0:02:47.6]} 6... Ba6 {[%clk
0:02:52.9]} 7. Bxa6 {[%clk 0:02:46]} 7... Nxa6 {[%clk 0:02:53.8]} 8. c3 {[%clk
0:02:46.9]} 8... O-O {[%clk 0:02:52.4]} 9. O-O {[%clk 0:02:46.8]} 9... Bxg3
{[%clk 0:02:49.8]} 10. hxg3 {[%clk 0:02:46.4]} 10... c5 {[%clk 0:02:50.7]} 11.
Qa4 {[%clk 0:02:45.4]} 11... Nb8 {[%clk 0:02:46.4]} 12. Ne5 {[%clk 0:02:40.9]}
12... Qc7 {[%clk 0:02:41.9]} 13. f4 {[%clk 0:02:31.7]} 13... Nbd7 {[%clk
0:02:37.6]} 14. Rfe1 {[%clk 0:02:16.9]} 14... a6 {[%clk 0:02:28.9]} 15. Nxd7
{[%clk 0:02:12.5]} 15... Nxd7 {[%clk 0:02:27.5]} 16. Nf3 {[%clk 0:02:12.4]}
16... b5 {[%clk 0:02:23.8]} 17. Qd1 {[%clk 0:02:09.9]} 17... Nf6 {[%clk
0:02:23.2]} 18. Nd2 {[%clk 0:02:06.6]} 18... Rab8 {[%clk 0:02:22.5]} 19. a3
{[%clk 0:02:05]} 19... a5 {[%clk 0:02:22.3]} 20. g4 {[%clk 0:02:00.2]} 20... b4
{[%clk 0:02:12.5]} 21. g5 {[%clk 0:01:55.5]} 21... Nd7 {[%clk 0:02:11.9]} 22.
axb4 {[%clk 0:01:51.5]} 22... axb4 {[%clk 0:02:12.7]} 23. Nf3 {[%clk 0:01:42.9]}
23... c4 {[%clk 0:02:04.4]} 24. Ne5 {[%clk 0:01:39.8]} 24... Nxe5 {[%clk
0:02:00.3]} 25. dxe5 {[%clk 0:01:39.9]} 25... bxc3 {[%clk 0:01:58.6]} 26. bxc3
{[%clk 0:01:39.9]} 26... Rb2 {[%clk 0:01:58.9]} 27. Re2 {[%clk 0:01:39.2]} 27...
Rb3 {[%clk 0:01:56.2]} 28. Qd4 {[%clk 0:01:38.3]} 28... Rfb8 {[%clk 0:01:56]}
29. Rea2 {[%clk 0:01:36.9]} 29... Rb1+ {[%clk 0:01:54.4]} 30. Kh2 {[%clk
0:01:36.3]} 30... Rxa1 {[%clk 0:01:51.2]} 31. Rxa1 {[%clk 0:01:36.4]} 31... g6
{[%clk 0:01:50.9]} 32. Ra7 {[%clk 0:01:35.3]} 32... Qb6 {[%clk 0:01:50.9]} 33.
Ra8 {[%clk 0:01:28.4]} 33... Kg7 {[%clk 0:01:31.7]} 34. Rxb8 {[%clk 0:01:27.8]}
34... Qxb8 {[%clk 0:01:32.6]} 35. e4 {[%clk 0:01:28.2]} 35... Qb7 {[%clk
0:01:19.3]} 36. exd5 {[%clk 0:01:24.9]} 36... Qxd5 {[%clk 0:01:20.2]} 37. Qf2
{[%clk 0:00:43]} 37... Qd3 {[%clk 0:01:18.7]} 38. Qe1 {[%clk 0:00:42.6]} 38...
h6 {[%clk 0:01:12.1]} 39. gxh6+ {[%clk 0:00:42.2]} 39... Kxh6 {[%clk 0:01:13]}
40. g3 {[%clk 0:00:42.5]} 40... Kh5 {[%clk 0:01:08.1]} 41. Kh3 {[%clk
0:00:42.6]} 41... Qf3 {[%clk 0:01:03.9]} 42. Kh2 {[%clk 0:00:40.3]} 42... Kg4
{[%clk 0:01:03.7]} 43. Qg1 {[%clk 0:00:32.5]} 43... Qe2+ {[%clk 0:00:43.4]} 44.
Kh1 {[%clk 0:00:28.6]} 44... Kh3 {[%clk 0:00:40.8]} 45. g4 {[%clk 0:00:26.6]}
45... Qf3+ {[%clk 0:00:40.4]} 0-1

[Event "*** SCC Grand Prix: Titled Tuesday Blitz"]
[Site "Chess.com"]
[Date "2020.06.23"]
[Round "1"]
[White "seorobert1971"]
[Black "Batsai"]
[Result "0-1"]
[WhiteElo "2689"]
[BlackElo "2375"]
[TimeControl "180+1"]
[EndTime "10:07:14 PDT"]
[Termination "Batsai won by checkmate"]

1. c4 {[%clk 0:03:00.9]} 1... e6 {[%clk 0:02:53.8]} 2. Nc3 {[%clk 0:03:00.7]}
2... d5 {[%clk 0:02:52.9]} 3. d4 {[%clk 0:03:00.8]} 3... Nf6 {[%clk 0:02:52.5]}
4. Nf3 {[%clk 0:03:01.1]} 4... Be7 {[%clk 0:02:50.7]} 5. g3 {[%clk 0:03:00]}
5... O-O {[%clk 0:02:49.4]} 6. Bg2 {[%clk 0:03:00.1]} 6... Nbd7 {[%clk
0:02:45.8]} 7. O-O {[%clk 0:02:57.6]} 7... c6 {[%clk 0:02:43.4]} 8. b3 {[%clk
0:02:49.8]} 8... b6 {[%clk 0:02:36.4]} 9. Nd2 {[%clk 0:02:49.5]} 9... Bb7 {[%clk
0:02:31]} 10. e4 {[%clk 0:02:49.1]} 10... c5 {[%clk 0:01:57.4]} 11. exd5 {[%clk
0:02:11.2]} 11... cxd4 {[%clk 0:01:56]} 12. Nb5 {[%clk 0:02:09.2]} 12... Bc5
{[%clk 0:01:32.4]} 13. dxe6 {[%clk 0:01:48]} 13... Bxg2 {[%clk 0:01:31.7]} 14.
exf7+ {[%clk 0:01:35.7]} 14... Rxf7 {[%clk 0:01:28.9]} 15. Kxg2 {[%clk
0:01:36.6]} 15... a6 {[%clk 0:01:27.9]} 16. Na3 {[%clk 0:01:36.4]} 16... Ne5
{[%clk 0:01:21.5]} 17. Nf3 {[%clk 0:01:09.5]} 17... Qd6 {[%clk 0:00:34]} 18. Bf4
{[%clk 0:00:51.3]} 18... Nfg4 {[%clk 0:00:15.7]} 19. Nxe5 {[%clk 0:00:37.6]}
19... Nxe5 {[%clk 0:00:14.9]} 20. Bxe5 {[%clk 0:00:33.1]} 20... Qxe5 {[%clk
0:00:09.5]} 21. Nc2 {[%clk 0:00:32.8]} 21... Raf8 {[%clk 0:00:09.3]} 22. Qd3
{[%clk 0:00:28.6]} 22... Rf3 {[%clk 0:00:07.9]} 23. Qd2 {[%clk 0:00:22.5]} 23...
Qe4 {[%clk 0:00:07.8]} 24. Kh3 {[%clk 0:00:07.3]} 24... Qf5+ {[%clk 0:00:03.3]}
25. Kg2 {[%clk 0:00:07.4]} 25... Qe4 {[%clk 0:00:03.6]} 26. Kh3 {[%clk
0:00:07.1]} 26... R8f5 {[%clk 0:00:03.8]} 27. Rae1 {[%clk 0:00:02.5]} 27... Rh5+
{[%clk 0:00:03.4]} 28. Kg2 {[%clk 0:00:02.5]} 28... Rxf2+ {[%clk 0:00:03.6]} 29.
Kxf2 {[%clk 0:00:02.1]} 29... Rxh2+ {[%clk 0:00:04.1]} 30. Kg1 {[%clk
0:00:02.3]} 30... Qh1# {[%clk 0:00:04.9]} 0-1